bitfinex/quotes_ETHUSD_20250130
["timestamp","ask_amount","ask_price","bid_price","bid_amount"]
[1738263831606,3.05651,3271.7,3271.6,0.22828575]
[1738263832972,3.05668,3271.6,3271.1,6.08894549]
[1738263833198,3.05675,3271.5,3271.2,0.91460955]
[1738263833409,3.05688,3271.3,3271.2,0.45641277]
[1738263835224,3.05688,3271.3,3271.1,5.32734549]
[1738263836172,3.05698,3271.2,3271.1,5.32734549]
[1738263836837,3.05688,3271.3,3271.1,5.32734549]
[1738263837038,3.05651,3271.7,3271.1,5.32734549]
[1738263837236,3.05676,3271.5,3271.2,1.31583455]
[1738263838275,3.05679,3271.4,3271.3,0.22814266]
[1738263840225,3.05698,3271.2,3271.1,5.32734549]
[1738263840426,0.7614,3271.3,3270.6,0.7831]
[1738263840669,3.05723,3271.0,3270.6,1.88763973]
[1738263840863,3.05723,3271.0,3270.6,7.21498522]
[1738263841066,3.05731,3270.9,3270.6,7.21498522]
[1738263841376,3.05744,3270.7,3270.6,6.11044549]
[1738263841549,3.05744,3270.7,3270.6,5.32734549]
[1738263842075,3.05731,3270.9,3270.6,5.32734549]
[1738263842374,3.05736,3270.8,3270.6,5.32734549]
[1738263844471,3.05736,3270.8,3270.7,0.22820691]
[1738263846582,3.05736,3270.8,3270.7,6.91e-06]
[1738263846583,9.701174,3270.8,3270.7,6.91e-06]
[1738263846761,9.67803382,3270.8,3270.7,6.91e-06]
[1738263846971,10.08977212,3270.8,3270.7,6.91e-06]
[1738263847327,16.16131848,3270.8,3270.7,6.91e-06]
[1738263848182,3.0581,3270.0,3269.9,0.47545759]
[1738263848524,3.05882,3269.3,3269.1,0.36506374]
[1738263848675,3.0587,3269.4,3269.1,0.36506374]
[1738263848886,3.05885,3269.2,3269.1,0.36506374]
[1738263849878,3.05885,3269.2,3268.9,0.57041174]
[1738263850384,3.05885,3269.2,3268.8,5.32734549]
[1738263852706,3.0587,3269.4,3268.8,9.24233779]
[1738263853407,3.05878,3269.3,3268.8,6.18316779]
[1738263853704,3.05878,3269.3,3268.8,5.32734549]
[1738263854091,3.05878,3269.3,3268.8,8.38656549]
[1738263854293,3.87852,3269.6,3268.8,8.38656549]
[1738263854294,3.05867,3269.4,3268.8,8.38656549]
[1738263855704,3.05852,3269.6,3269.0,3.05896]
[1738263855909,3.05852,3269.6,3269.1,0.7597]
[1738263857307,3.08916018,3269.6,3269.1,0.7597]
[1738263857512,6.1174,3269.4,3268.8,5.32734549]
[1738263857812,3.059,3269.1,3268.8,5.32734549]
[1738263857970,3.05913,3268.9,3268.8,5.32734549]
[1738263858172,3.05913,3268.9,3268.7,0.7748]
[1738263859906,3.059,3269.1,3268.7,0.7748]
[1738263860112,6.11802,3269.1,3268.7,0.7748]
[1738263860314,3.059,3269.1,3268.7,0.7748]
[1738263861014,0.8055,3269.5,3268.7,3.8341]
[1738263861015,3.05887,3269.2,3268.7,3.8341]
[1738263861173,3.05904,3269.0,3268.7,0.7748]
[1738263861522,3.05887,3269.2,3268.7,0.7748]
[1738263861523,3.08965018,3269.1,3268.7,0.7748]
[1738263862422,3.05901,3269.1,3268.7,0.7748]
[1738263862629,3.05871,3269.4,3268.8,3.0592]
[1738263862978,3.0585,3269.6,3269.0,3.05903]
[1738263863314,5.84417382,3270.0,3269.3,3.05869]
[1738263863315,3.82487,3270.0,3269.3,3.05869]
[1738263863626,3.05832,3269.8,3269.3,8.38603549]
[1738263863836,3.05832,3269.8,3269.4,0.8258]
[1738263865622,3.05832,3269.8,3269.3,5.32734549]
[1738263865623,3.05866,3269.4,3269.3,5.32734549]
[1738263867027,3.05866,3269.4,3268.9,5.32734549]
[1738263867333,3.05884,3269.3,3268.9,5.32734549]
[1738263867831,3.05886,3269.2,3268.9,5.32734549]
[1738263868734,3.05886,3269.2,3269.0,0.22790326]
[1738263869035,3.05853,3269.6,3269.1,1.375]
[1738263869243,3.05853,3269.6,3269.1,4.43387]
[1738263870307,3.05876,3269.3,3269.1,0.825]
[1738263870711,3.05876,3269.3,3269.2,0.22790326]
[1738263873641,3.86966,3269.3,3269.2,0.22790326]
[1738263874402,3.05903,3269.0,3268.9,5.32734549]
[1738263875104,3.0596,3268.4,3268.3,5.32734549]
[1738263875333,3.0596,3268.4,3268.0,1.25519514]
[1738263875334,3.05969,3268.3,3268.0,7.34474063]
[1738263875720,3.05969,3268.3,3268.0,6.86930818]
[1738263875916,3.05936,3268.7,3268.1,0.55]
[1738263876119,3.05936,3268.7,3268.2,3.05978]
[1738263876514,3.05917,3268.9,3268.3,0.55]
[1738263876715,3.05917,3268.9,3268.4,0.8112]
[1738263876929,3.05924,3268.8,3268.4,0.8112]
[1738263877320,3.05917,3268.9,3268.4,0.8112]
[1738263877648,6.11839,3268.9,3268.5,0.59542252]
[1738263877855,3.05941,3268.6,3268.5,0.59542252]
[1738263878853,3.87551,3268.6,3268.5,0.59542252]
[1738263879037,3.87551,3268.6,3268.5,0.22900866]
[1738263880741,6.87551,3268.6,3268.5,0.22900866]
[1738263881649,3.05981,3268.2,3267.7,5.32734549]
[1738263881949,6.1193,3268.4,3267.8,3.06015]
[1738263882367,3.05974,3268.3,3267.8,3.06015]
[1738263882571,3.05984,3268.2,3267.7,5.32734549]
[1738263883076,3.05984,3268.2,3267.9,0.59484371]
[1738263883641,3.05997,3268.0,3267.9,0.59484371]
[1738263884941,3.05984,3268.2,3267.7,5.32734549]
[1738263885777,3.05988,3268.1,3267.7,5.32734549]
[1738263885959,3.05977,3268.3,3267.7,5.32734549]
[1738263886270,3.05964,3268.4,3267.7,9.66876372]
[1738263886430,3.05964,3268.4,3267.8,4.63627139]
[1738263887157,3.05943,3268.6,3268.1,3.05987]
[1738263887343,3.05943,3268.6,3268.2,0.807]
[1738263887749,3.05952,3268.5,3268.2,0.807]
[1738263888061,3.05917,3268.9,3268.3,3.05968]
[1738263888267,3.05924,3268.8,3268.3,3.05968]
[1738263888788,3.05929,3268.8,3268.3,3.05968]
[1738263889566,3.05933,3268.7,3268.2,6.36293688]
[1738263889773,3.05918,3268.9,3268.3,3.60963]
[1738263889981,3.0595,3268.5,3268.4,0.22859139]
[1738263892054,3.05967,3268.4,3268.2,5.32734549]
[1738263892794,3.05969,3268.3,3268.2,5.32734549]
[1738263893287,3.0595,3268.5,3268.2,5.32734549]
[1738263894453,3.05965,3268.4,3268.2,5.32734549]
[1738263895694,3.0595,3268.5,3268.2,5.32734549]
[1738263896595,3.05924,3268.8,3268.2,5.32734549]
[1738263896770,3.05924,3268.8,3268.3,3.05968]
[1738263897389,3.05924,3268.8,3268.4,0.75]
[1738263897709,3.05912,3269.0,3268.4,6.07734549]
[1738263897880,3.05912,3269.0,3268.5,3.60944]
[1738263898625,3.05863,3269.5,3268.8,0.55]
[1738263898780,3.05826,3269.9,3269.3,0.75]
[1738263898980,3.05826,3269.9,3269.3,3.83928463]
[1738263899181,3.05826,3269.9,3269.3,3.8087]
[1738263899495,3.05826,3269.9,3269.4,0.55]
[1738263899667,3.05803,3270.1,3269.4,8.93593549]
[1738263899868,3.05803,3270.1,3269.6,0.55]
[1738263900067,3.0582,3269.9,3269.6,5.87734549]
[1738263900263,3.05803,3270.1,3269.6,8.93580549]
[1738263900515,3.05772,3270.4,3269.6,10.21024504]
[1738263900687,6.11573,3270.3,3269.6,10.21024504]
[1738263900885,6.11572,3270.3,3269.8,0.55]
[1738263901195,3.05792,3270.2,3269.7,0.55]
[1738263901800,3.05782,3270.3,3269.8,0.75]
[1738263902028,3.05766,3270.5,3269.8,5.2100795]
[1738263902321,3.0,3270.8,3269.8,2.1518595]
[1738263902535,3.05788,3270.3,3269.8,6.07734549]
[1738263903282,3.05792,3270.2,3269.8,6.07734549]
[1738263903489,3.05788,3270.3,3269.8,6.07734549]
[1738263904805,3.05788,3270.3,3269.9,0.55]
[1738263905199,3.05764,3270.5,3269.9,0.55]
[1738263905497,6.11536,3270.5,3269.9,1.51855955]
[1738263905702,3.05764,3270.5,3270.0,0.7986]
[1738263905925,3.05764,3270.5,3270.0,3.85669]
[1738263906226,3.05764,3270.5,3270.0,0.7986]
[1738263906434,3.05764,3270.5,3270.1,0.55]
[1738263906587,3.05764,3270.5,3270.1,1.67832526]
[1738263907017,3.05747,3270.7,3270.1,4.73631526]
[1738263907215,3.83357,3271.3,3270.7,3.05743]
[1738263907433,0.7766,3271.6,3270.8,0.799]
[1738263907726,3.0567,3271.5,3270.9,0.55]
[1738263907929,0.7766,3271.6,3271.0,0.03056944]
[1738263907930,3.05662,3271.6,3271.0,0.03056944]
[1738263908429,3.05649,3271.8,3271.1,3.60704]
[1738263908598,3.05649,3271.8,3271.3,3.60687]
[1738263909001,3.05649,3271.8,3271.3,0.55]
[1738263909201,3.05623,3272.0,3271.3,3.60686]
[1738263909412,0.8211,3272.3,3271.5,0.55]
[1738263909615,0.2,3273.6,3271.4,0.440476]
[1738263909616,3.05583,3272.5,3271.9,3.05632]
[1738263909930,3.05583,3272.5,3272.1,0.8083]
[1738263910131,3.05588,3272.4,3272.1,0.8083]
[1738263911234,3.05583,3272.5,3272.1,0.8083]
[1738263911731,3.05579,3272.5,3272.1,0.8083]
[1738263912089,0.7504,3273.0,3272.2,0.55]
[1738263912329,3.05543,3272.9,3272.2,3.60596]
[1738263912486,3.05551,3272.8,3272.2,3.60596]
[1738263912890,3.05559,3272.7,3272.2,0.55]
[1738263913115,3.05584,3272.5,3272.2,0.55]
[1738263913324,3.05546,3272.9,3272.2,0.55]
[1738263913643,3.05546,3272.9,3272.2,3.60597]
[1738263913788,3.05546,3272.9,3272.2,4.047397]
[1738263913989,3.67277382,3273.3,3272.1,0.8083]
[1738263913990,0.03064018,3272.8,3272.1,0.8083]
[1738263914219,3.05592,3272.4,3272.1,0.8083]
[1738263914422,3.05571,3272.6,3272.1,0.8083]
[1738263914600,3.05571,3272.6,3272.2,0.55]
[1738263914823,6.11108,3272.8,3272.2,0.55]
[1738263915231,3.05533,3273.0,3272.3,0.7787]
[1738263915441,3.05546,3272.9,3272.4,0.7787]
[1738263915799,3.05546,3272.9,3272.5,0.55]
[1738263916004,3.05524,3273.1,3272.5,0.55]
[1738263916205,3.05504,3273.3,3272.7,3.0555]
[1738263916442,3.05522,3273.1,3272.7,1.465026]
[1738263916744,3.05526,3273.1,3272.7,0.7989]
[1738263916944,3.05546,3272.9,3272.7,0.7989]
[1738263917456,3.05505,3273.3,3272.8,0.55]
[1738263917619,3.05522,3273.1,3272.7,0.7989]
[1738263917837,3.05546,3272.9,3272.7,0.7989]
[1738263919213,3.05522,3273.1,3272.7,0.7989]
[1738263919544,3.05531,3273.0,3272.8,0.97289]
[1738263919736,3.05531,3273.0,3272.7,0.7989]
[1738263920526,3.05531,3273.0,3272.7,6.12624549]
[1738263921229,3.05522,3273.1,3272.7,6.12624549]
[1738263921625,3.0553,3273.0,3272.7,6.12624549]
[1738263921854,3.05522,3273.1,3272.7,6.12624549]
[1738263922043,3.05542,3272.9,3272.7,6.12624549]
[1738263922243,3.05522,3273.1,3272.7,6.12624549]
[1738263922626,3.0553,3273.0,3272.7,6.12624549]
[1738263923743,3.05548,3272.8,3272.7,5.32734549]
[1738263925969,3.05566,3272.7,3272.3,5.32734549]
[1738263926170,3.05586,3272.4,3272.3,5.32734549]
[1738263930302,3.05574,3272.6,3272.3,5.32734549]
[1738263930461,3.05568,3272.6,3272.4,0.53273455]
[1738263930666,3.05577,3272.5,3272.3,5.32734549]
[1738263930996,3.05573,3272.6,3272.3,5.32734549]
[1738263934210,3.05573,3272.6,3272.4,0.2275381]
[1738263934516,3.05576,3272.5,3272.4,0.2275381]
[1738263935777,3.0554,3272.9,3272.4,0.78302646]
[1738263935979,0.03064018,3273.0,3272.4,0.78302646]
[1738263936191,3.05565,3272.7,3272.4,0.2275381]
[1738263936405,3.05565,3272.7,3272.4,0.59219152]
[1738263936716,3.05565,3272.7,3272.5,0.7643]
[1738263938395,3.05539,3272.9,3272.6,0.59219152]
[1738263938763,6.11086,3272.9,3272.6,0.59219152]
[1738263939614,3.05553,3272.8,3272.7,0.59219152]
[1738263943099,3.05531,3273.0,3272.7,0.2275381]
[1738263943408,3.05548,3272.8,3272.7,0.2275381]
[1738263944831,3.05548,3272.8,3272.7,0.2275381]
[1738263947815,6.84358,3272.8,3272.7,0.2275381]
[1738263948996,3.05614,3272.1,3271.9,5.32734549]
[1738263949200,3.05623,3272.0,3271.9,5.32734549]
[1738263949501,3.05614,3272.1,3271.5,5.32734549]
[1738263949502,3.0566,3271.6,3271.5,5.32734549]
[1738263950336,3.05644,3271.8,3271.5,5.32734549]
[1738263950742,6.11295,3271.8,3271.5,5.55635111]
[1738263951240,3.05644,3271.8,3271.5,5.55635111]
[1738263951545,3.0566,3271.6,3271.5,0.22900562]
[1738263952526,3.0567,3271.5,3271.2,6.11094549]
[1738263953792,3.05688,3271.3,3271.2,5.32734549]
[1738263956154,3.057,3271.2,3271.0,0.62493881]
[1738263956564,3.05707,3271.1,3270.9,0.7751]
[1738263957051,3.05707,3271.1,3270.8,1.14757943]
[1738263957253,3.05716,3271.0,3270.9,5.32734549]
[1738263959641,3.05703,3271.2,3270.9,5.32734549]
[1738263959836,3.0571,3271.1,3270.9,5.32734549]
[1738263960377,3.05697,3271.3,3270.9,5.32734549]
[1738263960540,0.7818,3271.7,3271.0,0.7946]
[1738263960723,3.05625,3272.0,3271.3,1.3692]
[1738263960930,3.05624,3272.0,3271.5,3.60669]
[1738263961164,3.05609,3272.2,3271.6,0.89340355]
[1738263961351,3.05617,3272.1,3271.6,0.89340355]
[1738263961678,3.05609,3272.2,3271.6,0.89340355]
[1738263962026,3.05618,3272.1,3271.6,0.89340355]
[1738263962563,3.05609,3272.2,3271.6,0.89340355]
[1738263962769,3.05623,3272.0,3271.6,0.89340355]
[1738263963274,3.05588,3272.4,3271.8,0.7946]
[1738263963495,3.05588,3272.4,3271.9,3.05632]
[1738263963644,3.05594,3272.4,3271.9,0.55]
[1738263963850,3.05591,3272.4,3271.9,0.55]
[1738263964066,3.05591,3272.4,3271.9,1.87347899]
[1738263965059,3.05607,3272.2,3271.9,1.87347899]
[1738263965384,3.05607,3272.2,3271.9,0.55]
[1738263965893,3.05597,3272.3,3271.9,0.55]
[1738263967180,3.05574,3272.6,3272.1,0.55]
[1738263967361,3.05578,3272.5,3272.1,5.87734549]
[1738263967907,3.05578,3272.5,3272.2,0.8194]
[1738263968063,3.05565,3272.7,3272.3,0.66967455]
[1738263968257,3.05568,3272.6,3272.3,0.66967455]
[1738263972303,3.05579,3272.5,3272.2,0.8194]
[1738263973230,3.05587,3272.4,3272.2,0.8194]
[1738263973531,3.05596,3272.3,3272.1,5.87734549]
[1738263976632,3.05604,3272.2,3272.1,5.32734549]
[1738263976922,0.7858,3272.4,3271.6,9.7265]
[1738263976923,0.7858,3272.4,3271.7,5.32734549]
[1738263977068,3.05636,3271.9,3271.7,5.32734549]
[1738263977814,0.03064018,3272.3,3271.4,6.14834549]
[1738263978032,3.05696,3271.3,3271.0,6.14834549]
[1738263978165,3.05707,3271.1,3271.0,5.32734549]
[1738263980269,2.85707,3271.1,3271.0,5.32734549]
[1738263982403,2.85707,3271.1,3270.8,1.14757943]
[1738263982567,3.05726,3270.9,3270.8,1.14757943]
[1738263988660,3.87786,3270.9,3270.8,1.14757943]
[1738263991031,3.05726,3270.9,3270.8,1.14757943]
[1738263991893,0.7985,3271.6,3270.9,0.55]
[1738263992098,3.05675,3271.5,3271.1,0.8051]
[1738263992296,3.05635,3271.9,3271.2,5.87734549]
[1738263992611,3.05658,3271.7,3271.3,0.55]
[1738263992795,3.05632,3271.9,3271.3,0.55]
[1738263992997,3.7637,3272.5,3271.6,0.8134]
[1738263993309,3.05626,3272.0,3271.6,6.14074549]
[1738263994644,3.05587,3272.4,3271.9,0.55]
[1738263995208,3.05587,3272.4,3272.0,5.32734549]
[1738263995505,3.05587,3272.4,3272.1,0.58773455]
[1738263995946,3.05599,3272.3,3272.1,0.58773455]
[1738263996118,3.05604,3272.2,3272.1,0.58773455]
[1738263997205,3.05587,3272.4,3272.1,1.40843455]
[1738263997829,3.056,3272.3,3272.1,1.40843455]
[1738263998217,3.05604,3272.2,3272.1,1.40843455]
[1738264000843,3.05604,3272.2,3272.1,6.73578004]
[1738264001662,3.05604,3272.2,3272.1,5.91508004]
[1738264001810,3.05604,3272.2,3272.1,5.32734549]
[1738264006748,3.05642,3271.8,3271.6,6.10094549]
[1738264008813,3.05642,3271.8,3271.6,5.32734549]
[1738264012516,6.11291,3271.8,3271.6,5.32734549]
[1738264012851,3.05651,3271.7,3271.6,5.32734549]
[1738264013151,3.81351,3271.7,3271.6,5.32734549]
[1738264016551,3.05642,3271.8,3271.6,5.32734549]
[1738264016782,6.11256,3272.0,3271.6,6.62928004]
[1738264016918,3.05624,3272.0,3271.6,6.62928004]
[1738264017119,3.05624,3272.0,3271.6,5.86008004]
[1738264017831,3.05647,3271.8,3271.6,5.86008004]
[1738264019389,0.8098,3272.5,3271.6,5.86008004]
[1738264019581,0.8098,3272.5,3271.8,3.05636]
[1738264019582,3.05593,3272.4,3271.8,3.05636]
[1738264019886,3.05595,3272.3,3271.8,3.05636]
[1738264020436,3.05612,3272.2,3271.7,1.83582048]
[1738264021339,3.05623,3272.1,3271.7,1.83582048]
[1738264021740,3.05631,3272.0,3271.7,1.83582048]
[1738264021977,3.05587,3272.4,3271.8,0.99843476]
[1738264022141,3.05566,3272.7,3272.1,3.83308]
[1738264022336,3.05544,3272.9,3272.2,3.08658699]
[1738264022576,3.05544,3272.9,3272.2,6.14255699]
[1738264022755,3.05544,3272.9,3272.4,3.05584]
[1738264023053,3.0555,3272.8,3272.5,1.082584]
[1738264024358,3.05562,3272.7,3272.4,5.32734549]
[1738264024742,3.05576,3272.5,3272.4,5.32734549]
[1738264025074,3.87412,3272.7,3272.4,5.32734549]
[1738264025075,3.05562,3272.7,3272.4,5.32734549]
[1738264025388,3.05562,3272.7,3272.4,6.10134549]
[1738264025586,3.05542,3272.9,3272.4,6.10134549]
[1738264025886,3.05549,3272.8,3272.4,7.01707604]
[1738264026093,3.05542,3272.9,3272.4,7.01707604]
[1738264027889,3.05576,3272.5,3272.4,5.32734549]
[1738264028184,3.05564,3272.7,3272.4,5.32734549]
[1738264029372,3.05523,3273.1,3272.4,5.32734549]
[1738264029670,3.05499,3273.4,3272.6,0.55]
[1738264029877,3.0551,3273.3,3272.7,3.05548]
[1738264030052,3.0551,3273.3,3272.8,0.305548]
[1738264030253,3.05513,3273.2,3272.8,0.305548]
[1738264030653,3.05513,3273.2,3272.5,6.13114549]
[1738264030654,3.05533,3273.0,3272.6,0.55]
[1738264030849,3.05513,3273.2,3272.6,0.55]
[1738264031053,3.05513,3273.2,3272.6,3.60566]
[1738264031249,3.05498,3273.4,3272.9,3.05538]
[1738264031478,0.7528,3274.2,3273.0,6.13339603]
[1738264031782,0.7528,3274.2,3273.4,0.7755]
[1738264031783,3.05446,3273.9,3273.4,0.7755]
[1738264031955,3.05433,3274.1,3273.5,3.0853544]
[1738264032138,3.80703,3274.2,3273.4,0.7755]
[1738264032139,0.7528,3274.2,3273.4,0.7755]
[1738264032342,3.05444,3274.0,3273.4,0.7755]
[1738264032577,3.05459,3273.8,3273.4,0.7755]
[1738264033143,3.0544,3274.0,3273.4,0.7755]
[1738264033343,3.0544,3274.0,3273.5,0.383049]
[1738264033977,3.05449,3273.9,3273.5,0.383049]
[1738264034603,3.05422,3274.2,3273.6,0.55]
[1738264034604,3.05428,3274.1,3273.6,0.55]
[1738264035398,3.05457,3273.8,3273.5,0.383049]
[1738264035601,3.05451,3273.9,3273.5,0.383049]
[1738264035956,3.05431,3274.1,3273.5,0.383049]
[1738264035957,3.05431,3274.1,3273.6,0.55]
[1738264036156,3.05431,3274.1,3273.6,0.1708549]
[1738264036410,3.05441,3274.0,3273.6,5.32734549]
[1738264036983,3.05431,3274.1,3273.6,5.32734549]
[1738264037312,3.05446,3273.9,3273.6,5.32734549]
[1738264039566,3.05464,3273.7,3273.6,5.32734549]
[1738264040784,6.05464,3273.7,3273.6,5.32734549]
[1738264041197,6.05464,3273.7,3272.9,0.8242]
[1738264041198,3.05549,3272.8,3272.6,5.32734549]
[1738264041365,3.05558,3272.7,3272.6,5.32734549]
[1738264043728,3.05558,3272.7,3272.1,5.32734549]
[1738264044057,3.05604,3272.2,3272.1,5.32734549]
[1738264045019,3.05592,3272.4,3272.1,5.32734549]
[1738264045219,3.05592,3272.4,3272.1,5.94005004]
[1738264047909,3.05604,3272.2,3272.1,5.32734549]
[1738264048142,3.05592,3272.4,3272.1,5.32734549]
[1738264048325,6.11185,3272.4,3272.1,5.32734549]
[1738264048670,3.0558,3272.5,3272.1,5.32734549]
[1738264048825,3.05587,3272.4,3272.1,6.24567704]
[1738264050256,3.05595,3272.3,3272.1,6.24567704]
[1738264050913,3.05572,3272.6,3272.1,6.24567704]
[1738264051110,3.05585,3272.5,3272.1,6.24567704]
[1738264051642,3.05591,3272.4,3272.1,6.24567704]
[1738264051945,0.03064018,3272.3,3272.1,5.32734549]
[1738264052154,3.05604,3272.2,3272.1,5.32734549]
[1738264054336,3.88754,3272.2,3272.1,5.32734549]
[1738264054650,3.91818018,3272.2,3272.1,5.32734549]
[1738264054853,3.05642,3271.8,3271.5,5.32734549]
[1738264055151,3.05626,3272.0,3271.6,0.61387455]
[1738264055369,3.05641,3271.9,3271.6,0.61387455]
[1738264057268,3.05626,3272.0,3271.6,0.61387455]
[1738264057469,3.05651,3271.7,3271.6,0.61387455]
[1738264058168,3.05648,3271.8,3271.6,0.61387455]
[1738264058820,3.05625,3272.0,3271.6,0.61387455]
[1738264059092,3.05609,3272.2,3271.7,0.594122]
[1738264059606,3.05616,3272.1,3271.7,0.594122]
[1738264060024,3.05616,3272.1,3271.8,5.32734549]
[1738264061336,3.05629,3272.0,3271.8,5.32734549]
[1738264061535,3.05632,3271.9,3271.8,5.32734549]
[1738264062639,3.05616,3272.1,3271.8,5.32734549]
[1738264062863,3.05613,3272.2,3271.8,5.86008004]
[1738264063146,3.056,3272.3,3271.9,0.8138]
[1738264064837,3.05577,3272.5,3271.9,0.8138]
[1738264065040,3.05577,3272.5,3272.1,0.7962]
[1738264065195,3.7967,3273.1,3272.1,0.7962]
[1738264065396,3.05582,3272.5,3272.2,0.61235455]
[1738264066437,6.11167,3272.5,3272.2,0.61235455]
[1738264066675,3.05588,3272.4,3272.2,0.61235455]
[1738264068641,3.05595,3272.3,3272.2,0.61235455]
[1738264068946,3.05588,3272.4,3272.2,5.93970004]
[1738264070469,3.05588,3272.4,3272.3,0.42595467]
[1738264072603,3.0556,3272.7,3272.4,0.8197]
[1738264072845,3.05546,3272.9,3272.4,0.8197]
[1738264073163,3.05546,3272.9,3272.5,0.43015847]
[1738264074064,0.8043,3273.1,3272.5,0.43015847]
[1738264074065,3.05567,3272.6,3272.5,0.43015847]
[1738264074320,3.05583,3272.5,3272.3,0.42595467]
[1738264074473,3.05595,3272.3,3272.2,5.32734549]
[1738264074866,3.0556,3272.7,3272.3,0.7989]
[1738264075069,3.05544,3272.9,3272.3,0.7989]
[1738264075260,3.05544,3272.9,3272.4,3.97405755]
[1738264075462,3.05544,3272.9,3272.4,7.02983755]
[1738264075667,3.05507,3273.3,3272.7,3.05555]
[1738264075939,3.05521,3273.1,3272.8,5.32734549]
[1738264076093,3.05507,3273.3,3272.8,5.32734549]
[1738264076422,3.05511,3273.2,3272.9,0.83829055]
[1738264076965,3.05507,3273.3,3272.9,0.83829055]
[1738264077818,3.05484,3273.5,3273.0,0.7792]
[1738264078547,3.05489,3273.5,3273.0,0.7792]
[1738264080248,3.05489,3273.5,3273.0,3.83449]
[1738264080545,3.05489,3273.5,3273.1,0.46727806]
[1738264082817,3.05446,3274.0,3273.4,9.19090549]
[1738264083413,3.05405,3274.4,3273.8,3.05447]
[1738264083737,3.05405,3274.4,3273.9,0.7652]
[1738264083738,3.05425,3274.2,3273.9,0.7652]
[1738264084094,3.05405,3274.4,3273.9,0.7652]
[1738264084298,6.10813,3274.4,3273.9,0.7652]
[1738264084514,0.03064018,3274.3,3273.9,0.7652]
[1738264084850,3.05406,3274.4,3273.5,0.7828]
[1738264085194,3.05429,3274.1,3273.5,0.7828]
[1738264085399,3.05438,3274.0,3273.5,18.09497549]
[1738264086551,0.7591,3274.6,3273.5,18.09497549]
[1738264086713,3.05415,3274.3,3273.7,0.7828]
[1738264087117,3.05418,3274.2,3273.7,3.83741]
[1738264087598,3.05427,3274.1,3273.5,14.25734549]
[1738264087802,3.05462,3273.8,3273.5,14.25734549]
[1738264088004,3.05462,3273.8,3273.5,5.32734549]
[1738264088444,6.10881,3274.0,3273.5,5.32734549]
[1738264088819,3.05448,3273.9,3273.5,5.32734549]
[1738264089370,3.05436,3274.0,3273.5,5.32734549]
[1738264089575,3.05436,3274.0,3273.5,6.24385804]
[1738264089919,3.05443,3274.0,3273.5,6.24385804]
[1738264090687,3.0542,3274.2,3273.6,3.60465]
[1738264092069,3.0542,3274.2,3273.5,6.24385804]
[1738264092290,3.7591,3274.6,3273.5,5.32734549]
[1738264092291,3.61457382,3274.4,3273.5,5.32734549]
[1738264092486,6.10924,3273.8,3273.5,5.32734549]
[1738264092687,6.10925,3273.8,3273.5,5.32734549]
[1738264093376,3.05448,3273.9,3273.5,5.32734549]
[1738264093538,3.05439,3274.0,3273.5,5.32734549]
[1738264093747,3.05419,3274.2,3273.6,0.61101455]
[1738264094090,3.05419,3274.2,3273.8,0.8106]
[1738264096184,3.0541,3274.3,3273.8,0.8106]
[1738264096892,3.05429,3274.1,3273.8,0.8106]
[1738264097044,3.05445,3274.0,3273.6,0.815]
[1738264097442,3.05446,3273.9,3273.6,0.815]
[1738264098091,3.05464,3273.7,3273.6,0.815]
[1738264098286,3.05464,3273.7,3273.6,5.32734549]
[1738264101592,0.795,3274.0,3273.3,5.32734549]
[1738264102093,3.0549,3273.5,3273.3,5.32734549]
[1738264102443,6.1098,3273.5,3273.3,5.32734549]
[1738264102860,3.0549,3273.5,3273.3,5.32734549]
[1738264103053,3.05446,3273.9,3273.4,0.7688]
[1738264103283,3.0546,3273.8,3273.4,0.7688]
[1738264103444,6.10924,3273.8,3273.4,0.7688]
[1738264103643,3.05483,3273.5,3273.4,0.7688]
[1738264104269,3.05492,3273.4,3273.3,5.32734549]
[1738264108173,3.05476,3273.6,3273.3,5.32734549]
[1738264110289,3.05487,3273.5,3273.3,5.32734549]
[1738264110646,3.05475,3273.6,3273.3,5.32734549]
[1738264111263,3.05475,3273.6,3273.3,6.24730804]
[1738264111981,3.05475,3273.6,3273.4,0.22874935]
[1738264113481,3.05475,3273.6,3273.4,5.55609484]
[1738264114001,3.05475,3273.6,3273.4,5.32734549]
[1738264114894,3.05483,3273.5,3273.4,5.32734549]
[1738264122007,0.7856,3273.4,3273.0,5.32734549]
[1738264122308,3.0552,3273.1,3273.0,5.32734549]
[1738264123404,0.7856,3273.8,3273.1,0.7505]
[1738264123581,3.0547,3273.7,3273.2,3.0856561]
[1738264123780,3.0547,3273.7,3273.2,3.05511]
[1738264124507,3.0547,3273.7,3273.3,0.22879001]
[1738264124714,3.0547,3273.7,3273.3,0.60935101]
[1738264126194,3.0547,3273.7,3273.4,0.22879001]
[1738264127092,3.05483,3273.5,3273.4,0.22879001]
[1738264127514,3.05483,3273.5,3273.1,0.7505]
[1738264127722,3.05483,3273.5,3273.2,0.91330555]
[1738264128423,3.0547,3273.7,3273.3,5.32734549]
[1738264129011,3.05487,3273.5,3273.3,5.55638391]
[1738264129910,3.05478,3273.6,3273.3,5.55638391]
[1738264130312,3.05478,3273.6,3273.4,0.22903842]
[1738264131322,3.05483,3273.5,3273.4,0.22903842]
[1738264131824,3.05492,3273.4,3273.3,5.32734549]
[1738264132885,5.89909382,3273.4,3273.3,5.32734549]
[1738264133091,6.67229382,3273.4,3273.3,5.32734549]
[1738264133336,3.05576,3272.5,3272.4,5.32734549]
[1738264136152,3.88776,3272.7,3272.4,5.32734549]
[1738264136352,6.94342,3272.7,3272.4,5.32734549]
[1738264136554,3.05569,3272.6,3272.4,5.32734549]
[1738264136851,3.05566,3272.7,3272.4,5.32734549]
[1738264137329,3.05549,3272.8,3272.4,5.32734549]
[1738264137852,3.05558,3272.7,3272.4,5.32734549]
[1738264138035,3.05567,3272.6,3272.4,5.32734549]
[1738264139258,3.05554,3272.8,3272.4,5.32734549]